bitfinex/quotes_SOLUSD_20250714
["timestamp","ask_amount","ask_price","bid_price","bid_amount"]
[1752524758061,0.06,162.85,162.83,29.91102957]
[1752524758559,0.06,162.85,162.84,23.76974642]
[1752524758760,0.06,162.85,162.84,55.58974642]
[1752524759160,0.06,162.85,162.84,81.58974642]
[1752524760184,0.06,162.85,162.84,61.73074371]
[1752524764185,0.06,162.87,162.86,48.92492712]
[1752524764484,0.06,162.87,162.86,87.70998957]
[1752524765062,0.06,162.87,162.86,88.32401388]
[1752524766490,0.06,162.87,162.86,62.32401388]
[1752524767862,0.06,162.87,162.86,66.94060847]
[1752524769393,0.06,162.87,162.86,30.52401388]
[1752524769575,0.06,162.87,162.86,62.32401388]
[1752524770584,0.06,162.87,162.86,17.39870828]
[1752524770791,0.06,162.87,162.86,16.78468397]
[1752524770969,7.04506245,162.87,162.78,16.86385304]
[1752524771293,6.98506245,162.86,162.81,6.98506245]
[1752524771496,6.98506245,162.85,162.81,31.8]
[1752524771676,6.98506245,162.82,162.75,15.36020044]
[1752524771993,6.2485,162.83,162.78,6.98506245]
[1752524772169,13.23356245,162.83,162.79,38.76506245]
[1752524772494,13.23356245,162.83,162.79,44.9076956]
[1752524772690,13.23356245,162.83,162.79,31.78]
[1752524772691,19.37493809,162.83,162.79,31.78]
[1752524772910,6.98506245,162.8,162.74,6.1747708]
[1752524773070,6.98506245,162.79,162.75,31.78]
[1752524773274,6.98506245,162.79,162.76,16.78468397]
[1752524773495,6.98506245,162.8,162.76,16.78468397]
[1752524773874,6.98506245,162.79,162.76,16.78468397]
[1752524774067,6.98506245,162.79,162.75,16.78468397]
[1752524774471,6.98506245,162.79,162.75,22.92892155]
[1752524774900,6.98506245,162.8,162.75,29.913984]
[1752524775087,8.55566245,162.81,162.76,6.98506245]
[1752524775490,1.5706,162.81,162.76,6.98506245]
[1752524775698,8.55566245,162.81,162.76,6.98506245]
[1752524776773,1.5706,162.81,162.77,6.14363826]
[1752524776981,8.55566245,162.81,162.77,6.14363826]
[1752524778692,6.98506245,162.8,162.76,6.98506245]
[1752524779084,1.5706,162.81,162.76,6.98506245]
[1752524779290,13.23356245,162.83,162.78,6.98506245]
[1752524779600,6.2485,162.83,162.8,6.98506245]
[1752524780198,6.2485,162.83,162.79,6.98506245]
[1752524780798,6.2485,162.83,162.79,13.12773322]
[1752524782702,6.2485,162.83,162.79,6.98506245]
[1752524782703,12.38997578,162.83,162.79,6.98506245]
[1752524782998,19.37503823,162.83,162.79,6.98506245]
[1752524783299,6.98506245,162.82,162.78,16.78468397]
[1752524784274,6.98506245,162.82,162.78,22.92789365]
[1752524785104,13.23356245,162.83,162.78,29.9129561]
[1752524786005,6.98506245,162.82,162.78,29.9129561]
[1752524788697,19.37500562,162.83,162.78,29.9129561]
[1752524788899,6.98506245,162.82,162.78,23.76974642]
[1752524789097,6.98506245,162.81,162.76,6.14391771]
[1752524789300,6.98506245,162.8,162.76,16.78468397]
[1752524789891,6.98506245,162.8,162.76,23.76974642]
[1752524790405,6.98506245,162.8,162.76,29.91372463]
[1752524790711,13.12768773,162.8,162.76,16.78468397]
[1752524790910,6.98506245,162.77,162.74,0.03]
[1752524791114,6.98506245,162.76,162.74,0.03]
[1752524791601,1.5446,162.78,162.74,0.03]
[1752524791799,8.52966245,162.78,162.74,7.01506245]
[1752524792208,8.52966245,162.78,162.74,0.03]
[1752524792994,1.5446,162.78,162.75,6.98506245]
[1752524793190,8.52966245,162.78,162.75,16.78468397]
[1752524793513,8.52966245,162.78,162.75,16.81468397]
[1752524793812,1.5446,162.78,162.75,16.81468397]
[1752524794808,7.68799596,162.78,162.75,16.81468397]
[1752524795009,1.5446,162.78,162.75,16.81468397]
[1752524795595,1.5446,162.78,162.75,23.79974642]
[1752524798306,7.68791582,162.78,162.75,23.79974642]
[1752524798507,7.68791582,162.78,162.75,16.81468397]
[1752524799916,14.67297827,162.78,162.75,0.03]
[1752524800215,6.98506245,162.77,162.75,0.03]
[1752524800516,6.98506245,162.76,162.75,0.03]
[1752524802399,13.12907817,162.76,162.75,0.03]
[1752524803421,19.37507817,162.76,162.75,0.03]
[1752524804605,12.39001572,162.76,162.75,0.03]
[1752524804843,51.15507817,162.76,162.75,0.03]
[1752524806429,44.90907817,162.76,162.75,0.03]
[1752524807617,70.90907817,162.76,162.74,0.03]
[1752524807819,13.12945569,162.75,162.74,0.03]
[1752524809099,31.78,162.75,162.74,0.03]
[1752524809602,38.76506245,162.75,162.74,0.03]
[1752524809819,31.78,162.75,162.74,0.03]
[1752524810416,37.92439324,162.75,162.74,0.03]
[1752524811328,179.68,162.75,162.74,0.03]
[1752524811631,185.82439324,162.75,162.74,0.03]
[1752524813228,192.80945569,162.75,162.74,0.03]
[1752524816017,54.90945569,162.75,162.74,1e-08]
[1752524816271,51.09385569,162.75,162.74,1e-08]
[1752524816428,61.09385569,162.75,162.74,1e-08]
[1752524817134,51.09385569,162.75,162.74,1e-08]
[1752524818436,61.09385569,162.75,162.74,1e-08]
[1752524819336,26.0,162.72,162.69,0.03]
[1752524819637,6.98506245,162.7,162.69,0.03]
[1752524821745,37.90623379,162.71,162.69,0.03]
[1752524821746,32.14563158,162.72,162.69,0.03]
[1752524821933,31.76,162.71,162.69,7.01506245]
[1752524822334,31.76,162.71,162.69,0.03]
[1752524824943,6.98506245,162.7,162.69,0.03]
[1752524825349,13.13134394,162.7,162.69,0.03]
[1752524826146,37.90604091,162.71,162.69,0.03]
[1752524826453,44.89110336,162.71,162.69,0.03]
[1752524827341,6.98506245,162.7,162.69,0.03]
[1752524828755,13.13110336,162.71,162.69,0.03]
[1752524828947,38.74506245,162.7,162.69,0.03]
[1752524829461,44.89134394,162.7,162.69,0.03]
[1752524833838,38.74506245,162.7,162.69,0.03]
[1752524835037,37.90628149,162.7,162.69,0.03]
[1752524835241,44.89134394,162.7,162.69,0.03]
[1752524838436,37.90628149,162.7,162.69,0.03]
[1752524838648,44.89134394,162.7,162.69,0.03]
[1752524839661,37.90628149,162.7,162.69,0.03]
[1752524839861,44.89134394,162.7,162.69,0.03]
[1752524840063,37.90628149,162.7,162.69,0.03]
[1752524840246,44.89134394,162.7,162.69,0.03]
[1752524843275,31.76,162.7,162.69,0.03]
[1752524843436,147.9,162.71,162.69,0.03]
[1752524843637,31.76,162.7,162.69,0.03]
[1752524843836,31.76,162.7,162.69,7.01506245]
[1752524844242,179.66,162.71,162.69,7.01506245]
[1752524845343,179.66,162.71,162.69,13.16170308]
[1752524845841,179.66,162.71,162.69,7.01506245]
[1752524846674,179.66,162.71,162.7,6.98506245]
[1752524846675,31.76,162.71,162.7,6.98506245]
[1752524847572,147.96,162.74,162.7,29.91602791]
[1752524847749,0.06,162.74,162.73,6.98506245]
[1752524847954,0.06,162.74,162.73,23.76974642]
[1752524848971,0.06,162.74,162.73,30.25264642]
[1752524849168,0.06,162.74,162.73,31.77734642]
[1752524849353,0.06,162.83,162.74,16.78468397]
[1752524849550,0.06,162.83,162.8,6.98506245]
[1752524849876,31.8,162.83,162.8,13.12755093]
[1752524850085,31.8,162.83,162.8,6.98506245]
[1752524851875,37.94138768,162.83,162.8,6.98506245]
[1752524852448,37.94138768,162.83,162.79,23.76974642]
[1752524853085,6.98506245,162.82,162.77,6.98506245]
[1752524853288,31.72,162.81,162.77,6.98506245]
[1752524853450,6.98506245,162.8,162.75,16.78468397]
[1752524853793,6.98506245,162.77,162.73,1.5247]
[1752524853954,31.72,162.76,162.73,1.5247]
[1752524854356,31.72,162.76,162.73,8.50976245]
[1752524854562,31.72,162.78,162.75,6.98506245]
[1752524854753,31.72,162.78,162.77,6.98506245]
[1752524855163,147.9,162.8,162.77,6.98506245]
[1752524855164,179.62,162.8,162.77,6.98506245]
[1752524855380,31.72,162.8,162.79,6.98506245]
[1752524855575,31.72,162.81,162.79,6.98506245]
[1752524855784,31.72,162.82,162.79,6.98506245]
[1752524858283,31.72,162.82,162.8,6.98506245]
[1752524858656,0.06,162.83,162.81,6.98506245]
[1752524858975,0.06,162.83,162.82,23.76974642]
[1752524860060,0.06,162.83,162.82,29.91149804]
[1752524861315,0.06,162.83,162.82,61.63149804]
[1752524861684,0.06,162.83,162.82,29.91149804]
[1752524861974,0.06,162.83,162.82,61.61149804]
[1752524865060,0.06,162.83,162.82,62.2256732]
[1752524867168,0.06,162.87,162.85,42.78468397]
[1752524867371,0.06,162.87,162.86,55.46974642]
[1752524868460,0.06,162.87,162.86,61.60998957]
[1752524871885,0.06,162.87,162.86,63.16568957]
[1752524877694,1e-08,162.9,162.89,42.78468397]
[1752524877991,1e-08,162.9,162.89,85.07189114]
[1752524879679,1e-08,162.9,162.89,95.78254327]
[1752524880273,1e-08,162.9,162.89,49.53770747]
[1752524880579,1e-08,162.9,162.89,81.42974642]
[1752524880887,1e-08,162.9,162.89,48.44468397]
[1752524881086,1e-08,162.9,162.89,16.78468397]
[1752524881286,1e-08,162.9,162.89,48.44468397]
[1752524881489,1e-08,162.9,162.89,16.78468397]
[1752524882587,1e-08,162.9,162.89,55.42974642]
[1752524882890,1e-08,162.9,162.89,61.5688587]
[1752524883392,1e-08,162.9,162.89,16.78468397]
[1752524884582,1e-08,162.9,162.89,29.9088587]
[1752524884888,1e-08,162.9,162.89,23.76974642]
[1752524885494,1e-08,162.9,162.89,61.5688587]
[1752524885973,1e-08,162.9,162.89,62.18276992]
[1752524886895,1e-08,162.9,162.89,61.5688587]
[1752524887973,1e-08,162.9,162.89,23.76974642]
[1752524888192,1e-08,162.9,162.89,61.5688587]
[1752524894186,1e-08,162.9,162.89,16.78468397]
[1752524894897,1e-08,162.9,162.89,23.76974642]
[1752524895279,1e-08,162.9,162.89,16.78468397]
[1752524896682,1e-08,162.9,162.89,23.76974642]
[1752524901310,1e-08,162.9,162.89,16.78468397]
[1752524904216,6.98506246,162.9,162.86,16.78468397]
[1752524905114,13.12412468,162.9,162.86,16.78468397]
[1752524905421,6.98506245,162.88,162.85,16.78468397]
[1752524905602,6.98506245,162.89,162.85,16.78468397]
[1752524906919,13.12435249,162.89,162.85,16.78468397]
[1752524908291,6.98506245,162.88,162.85,16.78468397]
[1752524908496,13.12435249,162.89,162.85,16.78468397]
[1752524909188,1e-08,162.9,162.85,16.78468397]
[1752524909189,6.13888027,162.9,162.85,23.76974642]
[1752524909399,1e-08,162.9,162.87,6.98506245]
[1752524910229,1e-08,162.9,162.89,16.78468397]
[1752524910440,1e-08,162.9,162.89,23.76974642]
[1752524913192,1e-08,162.9,162.89,16.78468397]
[1752524916110,1e-08,162.9,162.86,23.76974642]
[1752524916417,6.98506245,162.89,162.82,6.14175162]
[1752524916621,6.98506245,162.88,162.83,55.40974642]
[1752524917403,6.98506245,162.89,162.85,16.78468397]
[1752524919202,6.13948919,162.88,162.85,16.78468397]
[1752524919507,6.98506245,162.86,162.83,31.64]
[1752524919703,6.13948919,162.88,162.81,32.17175799]
[1752524919704,6.98506245,162.84,162.81,0.03]
[1752524920295,40.83326245,162.87,162.82,6.98506245]
[1752524920499,6.98506245,162.86,162.81,7.01506245]
[1752524921126,6.98506245,162.85,162.81,0.03]
[1752524921820,147.9,162.88,162.84,6.98506245]
[1752524922000,26.0,162.88,162.84,6.98506245]
[1752524922623,32.13963641,162.88,162.84,6.98506245]
[1752524923012,6.13963641,162.88,162.84,6.98506245]
[1752524924628,6.98506245,162.87,162.83,16.78468397]
[1752524925208,6.98506245,162.85,162.81,0.03]
[1752524925615,6.98506245,162.86,162.81,7.01506245]
[1752524926714,6.1406202,162.85,162.81,7.01506245]
[1752524928718,6.98506245,162.86,162.82,6.98506245]
[1752524928919,38.62506245,162.88,162.83,6.98506245]
[1752524929106,147.9,162.89,162.85,6.98506245]
[1752524929508,147.9,162.89,162.86,6.98506245]
[1752524930016,154.03884285,162.9,162.86,6.98506245]
[1752524933021,154.03884285,162.9,162.85,16.78468397]
[1752524933207,154.03884285,162.9,162.86,6.98506245]
[1752524934027,147.90000001,162.9,162.86,6.98506245]
[1752524934227,154.03876345,162.9,162.86,6.98506245]
[1752524935943,6.98506245,162.88,162.81,0.03]
[1752524936138,13.1249286,162.87,162.83,16.78468397]
[1752524936440,6.98506245,162.87,162.83,16.78468397]
[1752524937539,6.13959693,162.88,162.83,16.78468397]
[1752524937729,6.98506245,162.87,162.83,16.78468397]
[1752524939041,13.12493966,162.87,162.83,16.78468397]
[1752524940127,6.13987721,162.87,162.83,23.76974642]
[1752524941063,13.1246594,162.88,162.83,29.91104859]
[1752524941346,44.74422639,162.89,162.83,29.91104859]
[1752524943532,44.74422639,162.89,162.84,6.98506245]
[1752524945147,31.62,162.89,162.85,23.76974642]
[1752524945354,154.03886664,162.9,162.85,23.76974642]
[1752524945649,154.03886664,162.9,162.86,6.98506245]
[1752524946247,147.90000001,162.9,162.86,6.98506245]
[1752524946435,154.03881698,162.9,162.86,6.98506245]
[1752524947052,161.02387943,162.9,162.85,29.91016216]
[1752524948155,147.90000001,162.9,162.86,6.98506245]
[1752524949141,147.90000001,162.9,162.87,6.98506245]
[1752524949855,1e-08,162.9,162.88,6.98506245]
[1752524950233,1e-08,162.9,162.89,6.98506245]
[1752524951937,1e-08,162.9,162.89,23.76974642]
[1752524952354,1e-08,162.9,162.89,29.9088587]
[1752524954953,1e-08,162.9,162.89,61.5088587]
[1752524960462,1e-08,162.9,162.89,23.76974642]
[1752524960766,1e-08,162.9,162.89,29.9088587]
[1752524961545,1e-08,162.9,162.89,16.78468397]
[1752524961883,1e-08,162.9,162.89,23.76974642]
[1752524962256,1e-08,162.9,162.89,29.9088587]
[1752524963475,1e-08,162.9,162.89,61.4888587]
[1752524965873,1e-08,162.9,162.89,55.34974642]
[1752524966259,1e-08,162.9,162.89,23.76974642]
[1752524966562,1e-08,162.9,162.89,16.78468397]
[1752524966971,1e-08,162.9,162.89,23.76974642]
[1752524967564,1e-08,162.9,162.89,29.9088587]
[1752524967779,1e-08,162.9,162.89,23.76974642]
[1752524973486,1e-08,162.9,162.89,29.9088587]
[1752524974288,1e-08,162.9,162.89,56.52276992]
[1752524974790,157.33972855,162.96,162.9,16.78468397]
[1752524974973,157.33972855,162.96,162.92,16.78468397]
[1752524975180,157.33972855,162.96,162.94,6.98506245]
[1752524975890,157.33972855,162.96,162.95,6.98506245]
[1752524976073,147.58000001,162.96,162.95,6.98506245]
[1752524976591,147.58000001,162.96,162.94,23.76974642]
[1752524977503,0.06,162.97,162.94,23.76974642]
[1752524977973,6.19630252,162.97,162.94,23.76974642]
[1752524978173,6.19630252,162.97,162.94,16.78468397]
[1752524978588,6.98506245,162.96,162.93,16.78468397]
[1752524978773,6.98506245,162.96,162.92,16.78468397]
[1752524979482,6.98506245,162.95,162.9,23.76974642]
[1752524979790,6.98506245,162.95,162.9,55.32974642]
[1752524980469,6.13722842,162.94,162.9,55.32974642]
[1752524981094,6.98506245,162.95,162.91,6.98506245]
[1752524981095,6.13698383,162.95,162.91,6.98506245]
[1752524981296,6.13698383,162.95,162.9,54.48339326]
[1752524981589,6.13698383,162.95,162.92,6.98506245]
[1752524982290,147.64000001,162.97,162.92,6.98506245]
[1752524982480,153.77625422,162.97,162.93,23.76974642]
[1752524984195,153.77625422,162.97,162.95,6.98506245]
[1752524984522,0.06,162.97,162.96,30.75480887]
[1752524984795,0.06,162.97,162.96,23.76974642]
[1752524985374,0.06,162.97,162.96,30.75480887]
[1752524986300,0.06,162.97,162.96,62.89128407]
[1752524986481,0.06,162.97,162.96,55.90622162]
[1752524986873,0.06,162.97,162.96,87.46622162]
[1752524987185,0.06,162.97,162.96,22.92115917]
[1752524987387,0.06,162.97,162.96,61.46622162]
[1752524987704,0.06,162.97,162.96,48.32468397]
[1752524988986,0.06,162.97,162.96,55.30974642]
[1752524990602,0.06,162.97,162.96,61.44622162]
[1752524992000,0.06,162.97,162.96,69.04493159]
[1752524993209,0.06,162.97,162.96,69.07493159]
[1752524993803,0.06,162.97,162.96,68.46128407]
[1752524994603,0.06,162.97,162.96,22.95115917]
[1752524994805,0.06,162.97,162.96,23.79974642]
[1752524995179,0.06,162.97,162.96,16.81468397]
[1752524995384,0.06,162.97,162.96,23.79974642]
[1752525000512,0.06,162.97,162.96,37.53493159]
[1752525001198,0.06,162.97,162.96,61.47622162]
[1752525002403,0.06,162.97,162.96,68.46128407]
[1752525002907,0.06,162.97,162.96,61.47622162]
[1752525003106,0.06,162.97,162.96,54.49115917]
[1752525003309,0.06,162.97,162.96,68.46128407]
[1752525004219,45.1473947,163.08,162.96,83.80247209]
[1752525004393,12.16233225,163.08,163.03,6.98506245]
[1752525004794,19.1473947,163.08,163.03,6.98506245]
[1752525005097,161.31223145,163.07,163.03,6.98506245]
[1752525005293,161.31223145,163.07,163.02,31.52]
[1752525005494,6.98506245,163.06,163.01,55.28974642]
[1752525005710,161.31223145,163.07,162.98,6.98506245]
[1752525005711,6.98506245,163.03,162.98,6.98506245]
[1752525006024,147.58000001,163.06,163.0,6.98506245]
[1752525006319,147.58000001,163.06,163.01,6.98506245]
[1752525006528,147.58000001,163.06,163.02,6.98506245]
[1752525006705,147.58000001,163.06,163.01,6.98506245]
[1752525006706,154.56506246,163.06,163.01,6.98506245]
[1752525006903,154.56506246,163.06,162.99,38.50506245]
[1752525006904,6.98506245,163.04,162.99,38.50506245]
[1752525007116,6.13421666,163.02,162.99,16.78468397]
[1752525007315,6.1338601,163.03,162.98,23.76974642]
[1752525008796,13.11892255,163.03,162.98,23.76974642]
[1752525009323,6.98506245,163.01,162.97,31.52]
[1752525009622,176.03352355,163.03,162.98,6.98506245]
[1752525009820,6.1338601,163.03,163.0,6.98506245]
[1752525010025,6.1338601,163.03,162.99,23.76974642]
[1752525010525,13.11892255,163.03,162.98,23.76974642]
[1752525011023,6.98506245,162.99,162.96,0.03]
[1752525011218,6.13572217,162.98,162.96,0.03]
[1752525013404,6.98506245,162.97,162.96,0.03]
[1752525013805,48.1100249,162.97,162.96,1e-08]
[1752525014612,52.94333936,162.97,162.89,0.03]
[1752525014819,6.98506245,162.9,162.89,0.03]
[1752525015628,13.12379787,162.9,162.89,0.03]
[1752525016932,21.33429787,162.9,162.89,0.03]
[1752525018429,47.33429787,162.9,162.89,0.03]
[1752525019140,63.58000374,162.9,162.89,1e-08]
[1752525020125,37.58000374,162.9,162.89,1e-08]
[1752525020531,14.34923542,162.9,162.89,1e-08]
[1752525020844,37.58000374,162.9,162.89,1e-08]
[1752525023036,63.58000374,162.9,162.89,1e-08]
[1752525023840,51.96461958,162.9,162.89,1e-08]
[1752525028321,25.96461958,162.9,162.89,1e-08]
[1752525031824,25.96461958,162.9,162.88,0.03]
[1752525031825,37.58000374,162.9,162.88,1e-08]
[1752525032140,69.15538416,162.89,162.88,1e-08]
[1752525034446,75.29449644,162.89,162.88,1e-08]
[1752525037342,49.29449644,162.89,162.88,1e-08]
[1752525037652,0.06,162.9,162.88,1e-08]
[1752525037832,0.06,162.9,162.88,11.61538417]
[1752525038342,0.06,162.9,162.89,28.40006813]
[1752525039053,0.06,162.9,162.89,34.53918041]
[1752525039833,0.06,162.9,162.89,36.18988041]
[1752525040037,0.06,162.9,162.89,43.44739163]
[1752525040342,0.06,162.9,162.89,74.98739163]
[1752525040946,0.06,162.9,162.89,96.32871615]
[1752525041350,1e-08,162.9,162.89,96.32871615]
[1752525041536,0.06,162.97,162.9,16.78468397]
[1752525041732,0.06,162.97,162.96,23.74139265]
[1752525043358,0.06,162.97,162.96,29.87786785]
[1752525044953,0.06,162.97,162.96,23.74139265]
[1752525045155,0.06,162.97,162.96,29.87786785]
[1752525046473,0.06,162.97,162.96,31.40456785]
[1752525049074,0.06,162.97,162.96,16.78468397]
[1752525049375,0.06,162.97,162.96,29.87786785]
[1752525049765,0.06,162.97,162.96,23.74139265]
[1752525051872,0.06,162.97,162.96,29.87786785]
[1752525052554,0.06,162.97,162.96,61.39786785]
[1752525052879,0.06,162.97,162.96,16.78468397]
[1752525053091,0.06,162.97,162.96,23.74139265]
[1752525055073,0.06,162.97,162.96,16.78468397]
[1752525055871,0.06,162.97,162.95,31.52]
[1752525056265,0.06,162.97,162.95,16.78468397]
[1752525056585,0.06,162.97,162.95,23.74139265]
[1752525057464,0.06,162.97,162.96,23.74139265]
[1752525058155,0.06,162.97,162.96,29.87786785]
[1752525058576,0.06,162.97,162.96,61.37786785]
[1752525058763,0.06,162.97,162.96,55.24139265]
[1752525059980,0.06,162.97,162.96,48.28468397]
[1752525061366,0.06,162.97,162.96,55.24139265]
[1752525061571,0.06,162.97,162.96,23.74139265]
[1752525062361,0.06,162.97,162.96,29.87786785]
[1752525062965,0.06,162.97,162.96,16.78468397]
[1752525063467,0.06,162.97,162.96,23.74139265]
[1752525064357,0.06,162.97,162.96,29.87786785]
[1752525066761,0.06,162.97,162.96,36.83457653]
[1752525067174,0.06,162.97,162.96,43.47337653]
[1752525067569,0.06,162.97,162.96,36.51666785]
[1752525068162,0.06,162.97,162.96,43.47337653]
[1752525069787,0.06,162.97,162.96,29.55995917]
[1752525070092,0.06,162.97,162.96,36.51666785]
[1752525071971,0.06,162.97,162.96,43.47337653]
[1752525073101,1e-08,162.97,162.96,43.47337653]
[1752525073791,0.06,162.98,162.97,16.78468397]
[1752525073997,0.06,163.04,163.01,16.78468397]
[1752525074168,0.06,163.04,163.02,31.48]
[1752525074377,0.06,163.04,163.03,16.78468397]
[1752525077099,0.06,163.04,163.03,23.74139265]
[1752525078095,0.06,163.04,163.03,16.78468397]
[1752525079209,0.06,163.04,163.03,23.74139265]
[1752525079781,0.06,163.04,163.03,29.87523304]
[1752525082612,0.06,163.04,163.03,23.74139265]
[1752525083491,0.06,163.04,163.03,16.78468397]
[1752525084781,0.06,163.04,163.03,29.87523304]
[1752525088594,0.06,163.04,163.03,55.87523304]
[1752525090691,0.06,163.04,163.03,48.91852436]
[1752525090895,0.06,163.04,163.03,61.33523304]
[1752525093104,0.06,163.04,163.03,55.87523304]
[1752525093304,0.06,163.04,163.03,87.33523304]
[1752525098102,0.06,163.04,163.03,81.20139265]
[1752525098486,0.06,163.04,163.03,87.33523304]
[1752525100298,0.06,163.04,163.03,94.29194172]
[1752525100594,0.06,163.04,163.03,68.29194172]
[1752525100804,0.06,163.05,163.03,68.29194172]
[1752525100805,0.06,163.05,163.04,1.6472]
[1752525101008,0.06,163.05,163.04,58.95864774]
[1752525101603,0.06,163.05,163.04,65.09211192]
[1752525102090,0.06,163.05,163.04,39.09211192]
[1752525102693,1e-08,163.05,163.04,39.09211192]
[1752525107690,0.06,163.11,163.04,51.69211192]
[1752525107894,0.06,163.11,163.1,49.74139265]
[1752525108211,0.06,163.11,163.1,81.18139265]
[1752525109205,0.06,163.11,163.1,81.79451343]
[1752525109816,0.06,163.11,163.1,87.92572127]
[1752525111995,0.06,163.11,163.1,49.52901259]
[1752525112200,0.06,163.11,163.1,74.22468397]
[1752525112401,0.06,163.11,163.1,48.22468397]
[1752525112621,0.06,163.11,163.1,16.78468397]
[1752525113106,14.66790868,163.11,163.02,6.13421666]
[1752525113297,6.95670868,163.05,163.02,6.13421666]
[1752525113492,6.95670868,163.05,163.02,31.44]
[1752525113718,7.7112,163.11,163.01,6.13447619]
[1752525113719,6.95670868,163.04,163.01,26.0]
[1752525113919,6.95670868,163.02,162.99,31.44]
[1752525114115,6.95670868,163.01,162.98,31.44]
[1752525114400,6.95670868,163.01,162.99,16.78468397]
[1752525114826,8.0371,163.03,162.99,6.95670868]
[1752525115017,8.0371,163.03,163.0,16.78468397]
[1752525115513,6.95670868,163.06,163.02,16.78468397]
[1752525115710,6.95670868,163.05,163.02,16.78468397]
[1752525117102,6.95670868,163.06,163.02,22.91872679]
[1752525117908,6.95670868,163.06,163.02,16.78468397]
[1752525118109,13.08942504,163.06,163.02,16.78468397]
[1752525119003,6.95670868,163.05,163.02,16.78468397]
[1752525120039,14.99380868,163.07,163.02,29.87559272]
[1752525120200,6.95670868,163.09,163.04,23.74139265]
[1752525121014,13.0883303,163.09,163.04,23.74139265]
[1752525122537,6.13120784,163.1,163.04,23.74139265]
[1752525123036,6.95670868,163.09,163.04,23.74139265]
[1752525123538,13.08791652,163.1,163.06,16.78468397]
[1752525124046,6.95670868,163.09,163.06,16.78468397]
[1752525124334,0.06,163.09,163.06,16.78468397]
[1752525124524,7.01670868,163.09,163.06,16.78468397]
[1752525124924,13.14836192,163.09,163.06,16.78468397]
[1752525125546,0.06,163.09,163.06,6.95670868]
[1752525125711,0.06,163.09,163.08,6.95670868]
[1752525126231,0.06,163.09,163.07,23.74139265]
[1752525126828,0.06,163.09,163.08,23.74139265]
[1752525127937,0.06,163.09,163.08,55.16139265]
[1752525128717,0.06,163.09,163.08,61.29335242]
[1752525129645,1e-08,163.09,163.08,61.29335242]
[1752525130144,1e-08,163.09,163.08,61.79335242]
[1752525130322,0.06,163.11,163.1,42.78468397]
[1752525130521,0.06,163.11,163.1,86.52722354]
[1752525131151,0.06,163.11,163.1,56.48572127]
[1752525131328,0.06,163.11,163.1,87.90572127]
[1752525131817,1e-08,163.11,163.1,94.86242995]
[1752525132015,1e-08,163.11,163.1,100.93842995]
[1752525133545,147.52000001,163.19,163.15,16.78468397]
[1752525133741,13.08417999,163.2,163.15,48.20468397]
[1752525133924,6.95670868,163.19,163.15,48.20468397]
[1752525134118,6.95670868,163.19,163.15,16.78468397]
[1752525134318,12.36002379,163.26,163.19,16.78468397]
[1752525134517,6.95670868,163.2,163.16,16.78468397]
[1752525135632,6.95670868,163.19,163.16,16.78468397]
[1752525136655,12.36002379,163.26,163.19,16.78468397]
[1752525136818,18.48530674,163.26,163.19,6.95670868]
[1752525137019,6.95670868,163.23,163.18,23.74139265]
[1752525137217,6.95670868,163.23,163.2,16.78468397]
[1752525137841,13.08314582,163.23,163.2,16.78468397]
[1752525138142,12.36002379,163.26,163.2,23.74139265]
[1752525138356,6.12557452,163.25,163.2,23.74139265]
[1752525142127,6.12557452,163.25,163.21,6.95670868]
[1752525142644,13.0822832,163.25,163.2,23.74139265]
[1752525142849,6.95670868,163.23,163.18,0.61282019]
[1752525143149,6.95670868,163.24,163.2,16.78468397]
[1752525143333,13.0822832,163.25,163.2,23.74139265]
[1752525143732,6.95670868,163.24,163.2,16.78468397]
[1752525143934,6.95670868,163.22,163.19,31.4]
[1752525144144,6.95670868,163.22,163.18,16.78468397]
[1752525144559,6.95670868,163.23,163.18,23.74139265]
[1752525144753,6.12670015,163.22,163.18,23.74139265]
[1752525145830,6.12594952,163.24,163.19,6.95670868]
[1752525146059,13.0826582,163.24,163.19,6.95670868]
[1752525146433,6.95670868,163.21,163.16,0.03]
[1752525146658,6.12857755,163.17,163.16,0.03]
[1752525146958,6.12830463,163.18,163.16,0.03]